[Event "January 2 Early 2024"]
[Site "https://www.chess.com"]
[Date "2024.01.02"]
[Round "2"]
[White "Micic, Aleksa"]
[Black "Badmatsyrenov, Oleg"]
[Result "0-1"]
[Board "100"]
[TimeControl "180+1"]
[WhiteFideId "989940"]
[BlackFideId "24115762"]
[WhiteElo "2444"]
[BlackElo "2753"]
[WhiteTeam "SRB"]
[BlackTeam "FID"]
[WhiteClock "0:00:17"]
[BlackClock "0:01:15"]

1. e4 {[%clk 0:03:00]}  c5 {[%clk 0:02:44]} 2. Nc3 {[%clk 0:02:59]}  a6 {[%clk 0:02:44]} 3. Nge2 {[%clk 0:02:56]}  b5 {[%clk 0:02:45]} 4. g3 {[%clk 0:02:56]}  Bb7 {[%clk 0:02:45]} 5. Bg2 {[%clk 0:02:55]}  e6 {[%clk 0:02:45]} 6. d4 {[%clk 0:02:56]}  cxd4 {[%clk 0:02:45]} 7. Nxd4 {[%clk 0:02:57]}  Nf6 {[%clk 0:02:45]} 8. O-O {[%clk 0:02:57]}  b4 {[%clk 0:02:44]} 9. Na4 {[%clk 0:02:57]}  Bxe4 {[%clk 0:02:44]} 10. Bxe4 {[%clk 0:02:56]}  Nxe4 {[%clk 0:02:45]} 11. Re1 {[%clk 0:02:56]}  Nc5 {[%clk 0:02:45]} 12. c3 {[%clk 0:02:53]}  Nxa4 {[%clk 0:02:45]} 13. Qxa4 {[%clk 0:02:53]}  Be7 {[%clk 0:02:44]} 14. cxb4 {[%clk 0:02:48]}  Qb6 {[%clk 0:02:43]} 15. Re4 {[%clk 0:02:18]}  O-O {[%clk 0:02:38]} 16. Be3 {[%clk 0:02:16]}  Qb7 {[%clk 0:02:37]} 17. Qc2 {[%clk 0:01:39]}  f5 {[%clk 0:02:31]} 18. Re5 {[%clk 0:01:24]}  Bd6 {[%clk 0:02:08]} 19. Ra5 {[%clk 0:01:19]}  Bxb4 {[%clk 0:02:05]} 20. Ra4 {[%clk 0:01:16]}  Be7 {[%clk 0:01:55]} 21. Rc4 {[%clk 0:01:15]}  a5 {[%clk 0:01:31]} 22. a3 {[%clk 0:01:07]}  Na6 {[%clk 0:01:26]} 23. a4 {[%clk 0:00:36]}  Nb4 {[%clk 0:01:25]} 24. Qb3 {[%clk 0:00:35]}  Rab8 {[%clk 0:01:22]} 25. Nb5 {[%clk 0:00:32]}  Nd5 {[%clk 0:01:19]} 26. Ba7 {[%clk 0:00:17]}  Qxa7 {[%clk 0:01:15]} 0-1

[Event "January 2 Early 2024"]
[Site "https://www.chess.com"]
[Date "2024.01.02"]
[Round "2"]
[White "Spichkin, Alexander"]
[Black "Liyanage, Ranindu Dilshan"]
[Result "0-1"]
[Board "103"]
[TimeControl "180+1"]
[WhiteFideId "4144074"]
[BlackFideId "9915834"]
[WhiteElo "2419"]
[BlackElo "2737"]
[WhiteTeam "RUS"]
[BlackTeam "SRI"]
[WhiteClock "0:00:28"]
[BlackClock "0:00:40"]

1. f4 {[%clk 0:03:00]}  d5 {[%clk 0:02:57]} 2. Nf3 {[%clk 0:03:00]}  g6 {[%clk 0:02:56]} 3. e3 {[%clk 0:03:00]}  Bg7 {[%clk 0:02:57]} 4. Be2 {[%clk 0:02:59]}  c5 {[%clk 0:02:55]} 5. O-O {[%clk 0:02:59]}  Nc6 {[%clk 0:02:52]} 6. d3 {[%clk 0:02:56]}  Nf6 {[%clk 0:02:42]} 7. Kh1 {[%clk 0:02:55]}  O-O {[%clk 0:02:42]} 8. a4 {[%clk 0:02:55]}  Qc7 {[%clk 0:02:40]} 9. Nc3 {[%clk 0:02:53]}  a6 {[%clk 0:02:37]} 10. e4 {[%clk 0:02:53]}  d4 {[%clk 0:02:33]} 11. Nb1 {[%clk 0:02:49]}  e5 {[%clk 0:02:33]} 12. Qe1 {[%clk 0:02:49]}  exf4 {[%clk 0:02:25]} 13. Qh4 {[%clk 0:02:47]}  Nh5 {[%clk 0:02:16]} 14. Na3 {[%clk 0:02:26]}  h6 {[%clk 0:02:05]} 15. Nc4 {[%clk 0:02:20]}  Be6 {[%clk 0:02:04]} 16. Nfd2 {[%clk 0:02:10]}  Nf6 {[%clk 0:01:52]} 17. Qxf4 {[%clk 0:02:05]}  Qxf4 {[%clk 0:01:51]} 18. Rxf4 {[%clk 0:02:04]}  Rad8 {[%clk 0:01:47]} 19. a5 {[%clk 0:01:56]}  Nb4 {[%clk 0:01:43]} 20. Bd1 {[%clk 0:01:55]}  Nd7 {[%clk 0:01:39]} 21. Nb3 {[%clk 0:01:38]}  f5 {[%clk 0:01:09]} 22. exf5 {[%clk 0:01:25]}  Bxf5 {[%clk 0:01:10]} 23. Bd2 {[%clk 0:01:23]}  g5 {[%clk 0:01:05]} 24. Rf3 {[%clk 0:01:16]}  Nc6 {[%clk 0:01:03]} 25. Nd6 {[%clk 0:01:10]}  Nde5 {[%clk 0:00:52]} 26. Rxf5 {[%clk 0:01:08]}  Rxd6 {[%clk 0:00:52]} 27. Rxf8+ {[%clk 0:01:08]}  Bxf8 {[%clk 0:00:53]} 28. Nxc5 {[%clk 0:01:08]}  Rf6 {[%clk 0:00:53]} 29. Bf3 {[%clk 0:00:59]}  Bxc5 {[%clk 0:00:45]} 30. Bd5+ {[%clk 0:00:58]}  Kg7 {[%clk 0:00:45]} 31. Re1 {[%clk 0:00:58]}  Rf2 {[%clk 0:00:41]} 32. Bc1 {[%clk 0:00:52]}  Rxc2 {[%clk 0:00:39]} 33. h3 {[%clk 0:00:50]}  Nxd3 {[%clk 0:00:38]} 34. Bb3 {[%clk 0:00:46]}  Nxe1 {[%clk 0:00:37]} 35. Bxc2 {[%clk 0:00:46]}  Nxc2 {[%clk 0:00:38]} 36. Kh2 {[%clk 0:00:46]}  Bd6+ {[%clk 0:00:37]} 37. Kg1 {[%clk 0:00:46]}  Bf4 {[%clk 0:00:38]} 38. Bxf4 {[%clk 0:00:45]}  gxf4 {[%clk 0:00:39]} 39. Kf2 {[%clk 0:00:45]}  d3 {[%clk 0:00:39]} 40. Kf3 {[%clk 0:00:45]}  N6d4+ {[%clk 0:00:39]} 41. Ke4 {[%clk 0:00:28]}  d2 {[%clk 0:00:40]} 0-1

[Event "January 2 Early 2024"]
[Site "https://www.chess.com"]
[Date "2024.01.02"]
[Round "2"]
[White "Lewtak, Damian"]
[Black "Batbold, Nyamsuren"]
[Result "1-0"]
[Board "104"]
[TimeControl "180+1"]
[WhiteFideId "1141724"]
[BlackFideId "4903331"]
[WhiteElo "2734"]
[BlackElo "2412"]
[WhiteTeam "POL"]
[BlackTeam "MGL"]
[WhiteClock "0:02:29"]
[BlackClock "0:02:15"]

1. e4 {[%clk 0:03:00]}  c5 {[%clk 0:02:57]} 2. Nf3 {[%clk 0:03:00]}  Nc6 {[%clk 0:02:56]} 3. Bb5 {[%clk 0:02:56]}  g6 {[%clk 0:02:56]} 4. O-O {[%clk 0:02:55]}  Bg7 {[%clk 0:02:54]} 5. Bxc6 {[%clk 0:02:56]}  dxc6 {[%clk 0:02:55]} 6. Re1 {[%clk 0:02:57]}  e5 {[%clk 0:02:55]} 7. a3 {[%clk 0:02:53]}  Bg4 {[%clk 0:02:54]} 8. h3 {[%clk 0:02:53]}  Bxf3 {[%clk 0:02:51]} 9. Qxf3 {[%clk 0:02:54]}  Nf6 {[%clk 0:02:46]} 10. d3 {[%clk 0:02:53]}  h6 {[%clk 0:02:45]} 11. Be3 {[%clk 0:02:53]}  b6 {[%clk 0:02:42]} 12. Nd2 {[%clk 0:02:50]}  O-O {[%clk 0:02:41]} 13. b4 {[%clk 0:02:51]}  cxb4 {[%clk 0:02:40]} 14. axb4 {[%clk 0:02:51]}  Re8 {[%clk 0:02:40]} 15. Ra6 {[%clk 0:02:44]}  Qc7 {[%clk 0:02:29]} 16. Rea1 {[%clk 0:02:43]}  Qb7 {[%clk 0:02:25]} 17. Nc4 {[%clk 0:02:36]}  Re6 {[%clk 0:02:15]} 18. Nxb6 {[%clk 0:02:29]} 1-0

[Event "January 2 Early 2024"]
[Site "https://www.chess.com"]
[Date "2024.01.02"]
[Round "2"]
[White "Zheng, Richard"]
[Black "Grave, Jacob Templen"]
[Result "1-0"]
[Board "105"]
[TimeControl "180+1"]
[WhiteFideId "2624893"]
[BlackFideId "1542656"]
[WhiteElo "2730"]
[BlackElo "2410"]
[WhiteTeam "CAN"]
[BlackTeam "NOR"]
[WhiteClock "0:00:34"]
[BlackClock "0:00:00"]

1. d4 {[%clk 0:03:00]}  Nf6 {[%clk 0:02:57]} 2. Bg5 {[%clk 0:03:00]}  d5 {[%clk 0:02:57]} 3. e3 {[%clk 0:02:56]}  c5 {[%clk 0:02:57]} 4. Bxf6 {[%clk 0:02:55]}  gxf6 {[%clk 0:02:57]} 5. dxc5 {[%clk 0:02:55]}  e6 {[%clk 0:02:56]} 6. a3 {[%clk 0:02:52]}  Bxc5 {[%clk 0:02:53]} 7. c4 {[%clk 0:02:51]}  dxc4 {[%clk 0:02:49]} 8. Nc3 {[%clk 0:02:44]}  Nc6 {[%clk 0:01:39]} 9. Bxc4 {[%clk 0:02:43]}  a6 {[%clk 0:01:28]} 10. Nf3 {[%clk 0:02:39]}  b5 {[%clk 0:01:25]} 11. Be2 {[%clk 0:02:39]}  Bb7 {[%clk 0:01:25]} 12. Qc2 {[%clk 0:02:34]}  Qb6 {[%clk 0:01:12]} 13. Rd1 {[%clk 0:02:30]}  Rc8 {[%clk 0:01:12]} 14. O-O {[%clk 0:02:23]}  O-O {[%clk 0:01:09]} 15. Ne4 {[%clk 0:02:22]}  Be7 {[%clk 0:01:07]} 16. Qb1 {[%clk 0:02:11]}  Rfd8 {[%clk 0:01:02]} 17. Ng3 {[%clk 0:02:10]}  f5 {[%clk 0:00:57]} 18. Nxf5 {[%clk 0:01:50]}  exf5 {[%clk 0:00:55]} 19. Qxf5 {[%clk 0:01:51]}  Na5 {[%clk 0:00:45]} 20. Bd3 {[%clk 0:01:46]}  Qh6 {[%clk 0:00:30]} 21. Ne5 {[%clk 0:01:43]}  Qg7 {[%clk 0:00:26]} 22. f3 {[%clk 0:01:28]}  Rc5 {[%clk 0:00:25]} 23. Qxh7+ {[%clk 0:01:09]}  Qxh7 {[%clk 0:00:22]} 24. Bxh7+ {[%clk 0:01:10]}  Kxh7 {[%clk 0:00:18]} 25. Rxd8 {[%clk 0:01:10]}  Bxd8 {[%clk 0:00:18]} 26. Nxf7 {[%clk 0:01:11]}  Bb6 {[%clk 0:00:18]} 27. b4 {[%clk 0:01:11]}  Rf5 {[%clk 0:00:18]} 28. Nd6 {[%clk 0:01:09]}  Bxe3+ {[%clk 0:00:17]} 29. Kh1 {[%clk 0:01:09]}  Rd5 {[%clk 0:00:17]} 30. Ne4 {[%clk 0:01:05]}  Nc4 {[%clk 0:00:17]} 31. Nf6+ {[%clk 0:01:06]}  Kg6 {[%clk 0:00:16]} 32. Nxd5 {[%clk 0:01:07]}  Bxd5 {[%clk 0:00:17]} 33. Ra1 {[%clk 0:01:05]}  Nd2 {[%clk 0:00:16]} 34. a4 {[%clk 0:01:03]}  Nxf3 {[%clk 0:00:14]} 35. Ra3 {[%clk 0:00:42]}  Bc1 {[%clk 0:00:13]} 36. Rd3 {[%clk 0:00:40]}  Be4 {[%clk 0:00:11]} 37. Rd6+ {[%clk 0:00:41]}  Kf5 {[%clk 0:00:10]} 38. gxf3 {[%clk 0:00:39]}  Bxf3+ {[%clk 0:00:11]} 39. Kg1 {[%clk 0:00:40]}  Be3+ {[%clk 0:00:11]} 40. Kf1 {[%clk 0:00:40]}  bxa4 {[%clk 0:00:11]} 41. Rxa6 {[%clk 0:00:41]}  Be4 {[%clk 0:00:07]} 42. Rxa4 {[%clk 0:00:38]}  Bd3+ {[%clk 0:00:06]} 43. Ke1 {[%clk 0:00:37]}  Bf4 {[%clk 0:00:04]} 44. h3 {[%clk 0:00:35]}  Ke5 {[%clk 0:00:02]} 45. b5 {[%clk 0:00:33]}  Bxb5 {[%clk 0:00:00]} 46. Ra5 {[%clk 0:00:34]} 1-0

[Event "January 2 Early 2024"]
[Site "https://www.chess.com"]
[Date "2024.01.02"]
[Round "2"]
[White "Bulatova, Kamaliya"]
[Black "Vaibhav Jayant Raut"]
[Result "0-1"]
[Board "109"]
[TimeControl "180+1"]
[WhiteFideId "34111546"]
[BlackFideId "5089034"]
[WhiteElo "2394"]
[BlackElo "2724"]
[WhiteTeam "RUS"]
[BlackTeam "IND"]
[WhiteClock "0:00:00"]
[BlackClock "0:00:59"]

1. d4 {[%clk 0:03:00]}  Nf6 {[%clk 0:02:59]} 2. Bf4 {[%clk 0:03:00]}  b6 {[%clk 0:02:58]} 3. e3 {[%clk 0:02:58]}  Bb7 {[%clk 0:02:58]} 4. Nf3 {[%clk 0:02:58]}  d6 {[%clk 0:02:58]} 5. h3 {[%clk 0:02:57]}  Nbd7 {[%clk 0:02:58]} 6. Bh2 {[%clk 0:02:57]}  g6 {[%clk 0:02:58]} 7. Be2 {[%clk 0:02:56]}  Bg7 {[%clk 0:02:58]} 8. O-O {[%clk 0:02:55]}  O-O {[%clk 0:02:59]} 9. c3 {[%clk 0:02:54]}  Re8 {[%clk 0:02:58]} 10. a4 {[%clk 0:02:48]}  a6 {[%clk 0:02:56]} 11. Nbd2 {[%clk 0:02:43]}  e5 {[%clk 0:02:54]} 12. Qb3 {[%clk 0:02:38]}  Qe7 {[%clk 0:02:49]} 13. dxe5 {[%clk 0:02:17]}  dxe5 {[%clk 0:02:45]} 14. Bc4 {[%clk 0:02:14]}  Nc5 {[%clk 0:02:36]} 15. Qa2 {[%clk 0:02:09]}  Nfe4 {[%clk 0:02:33]} 16. Nxe4 {[%clk 0:01:47]}  Bxe4 {[%clk 0:02:31]} 17. Bd5 {[%clk 0:01:45]}  Rad8 {[%clk 0:02:25]} 18. Bxe4 {[%clk 0:01:34]}  Nxe4 {[%clk 0:02:26]} 19. Rad1 {[%clk 0:01:32]}  Nc5 {[%clk 0:02:26]} 20. Qc4 {[%clk 0:01:24]}  a5 {[%clk 0:02:23]} 21. Bg3 {[%clk 0:01:04]}  Bf6 {[%clk 0:02:19]} 22. Nd2 {[%clk 0:01:00]}  e4 {[%clk 0:02:12]} 23. Nb3 {[%clk 0:00:47]}  Nd3 {[%clk 0:01:56]} 24. Qxc7 {[%clk 0:00:42]}  Qxc7 {[%clk 0:01:50]} 25. Bxc7 {[%clk 0:00:42]}  Rc8 {[%clk 0:01:51]} 26. Bg3 {[%clk 0:00:27]}  Nxb2 {[%clk 0:01:48]} 27. Rd6 {[%clk 0:00:26]}  Bxc3 {[%clk 0:01:48]} 28. Rxb6 {[%clk 0:00:25]}  Nxa4 {[%clk 0:01:47]} 29. Ra6 {[%clk 0:00:25]}  Nc5 {[%clk 0:01:46]} 30. Nxc5 {[%clk 0:00:21]}  Rxc5 {[%clk 0:01:47]} 31. Rc1 {[%clk 0:00:17]}  Rec8 {[%clk 0:01:48]} 32. Ra7 {[%clk 0:00:16]}  Bb4 {[%clk 0:01:39]} 33. Rxc5 {[%clk 0:00:15]}  Rxc5 {[%clk 0:01:36]} 34. Kh2 {[%clk 0:00:12]}  Kg7 {[%clk 0:01:31]} 35. Bd6 {[%clk 0:00:11]}  Rb5 {[%clk 0:01:28]} 36. Bc7 {[%clk 0:00:10]}  h5 {[%clk 0:01:26]} 37. Kg3 {[%clk 0:00:06]}  Be1 {[%clk 0:01:25]} 38. Bd6 {[%clk 0:00:04]}  g5 {[%clk 0:01:18]} 39. h4 {[%clk 0:00:03]}  Kg6 {[%clk 0:01:17]} 40. hxg5 {[%clk 0:00:03]}  Rxg5+ {[%clk 0:01:13]} 41. Kf4 {[%clk 0:00:03]}  Rb5 {[%clk 0:01:12]} 42. Kxe4 {[%clk 0:00:03]}  Bxf2 {[%clk 0:01:12]} 43. Kf3 {[%clk 0:00:03]}  Be1 {[%clk 0:01:06]} 44. Bf4 {[%clk 0:00:03]}  Bc3 {[%clk 0:01:00]} 45. Ra6+ {[%clk 0:00:03]}  f6 {[%clk 0:01:00]} 46. Ra7 {[%clk 0:00:02]}  Rb1 {[%clk 0:00:58]} 47. Ra8 {[%clk 0:00:01]}  Rf1+ {[%clk 0:00:57]} 48. Ke2 {[%clk 0:00:02]}  Ra1 {[%clk 0:00:57]} 49. Kf3 {[%clk 0:00:02]}  a4 {[%clk 0:00:58]} 50. Rg8+ {[%clk 0:00:02]}  Kf7 {[%clk 0:00:58]} 51. Ra8 {[%clk 0:00:02]}  a3 {[%clk 0:00:58]} 52. Bd6 {[%clk 0:00:00]}  a2 {[%clk 0:00:59]} 0-1

[Event "January 2 Early 2024"]
[Site "https://www.chess.com"]
[Date "2024.01.02"]
[Round "2"]
[White "Fier, Alexandr"]
[Black "Pullela, Sricharan"]
[Result "1-0"]
[Board "110"]
[TimeControl "180+1"]
[WhiteFideId "2107139"]
[BlackFideId "30951089"]
[WhiteElo "2723"]
[BlackElo "2378"]
[WhiteTeam "BRA"]
[BlackTeam "USA"]
[WhiteClock "0:01:11"]
[BlackClock "0:01:00"]

1. Nf3 {[%clk 0:03:00]}  Nf6 {[%clk 0:02:59]} 2. g3 {[%clk 0:02:59]}  g6 {[%clk 0:02:56]} 3. Bg2 {[%clk 0:03:00]}  Bg7 {[%clk 0:02:57]} 4. O-O {[%clk 0:03:01]}  d6 {[%clk 0:02:58]} 5. d4 {[%clk 0:03:01]}  O-O {[%clk 0:02:58]} 6. c4 {[%clk 0:03:01]}  c5 {[%clk 0:02:59]} 7. Nc3 {[%clk 0:02:59]}  Nc6 {[%clk 0:02:59]} 8. dxc5 {[%clk 0:03:00]}  dxc5 {[%clk 0:03:00]} 9. Bf4 {[%clk 0:02:57]}  Be6 {[%clk 0:02:49]} 10. Qa4 {[%clk 0:02:51]}  a6 {[%clk 0:02:45]} 11. Ng5 {[%clk 0:02:51]}  Bd7 {[%clk 0:02:44]} 12. Rad1 {[%clk 0:02:48]}  h6 {[%clk 0:02:40]} 13. Nf3 {[%clk 0:02:43]}  Qb6 {[%clk 0:02:28]} 14. Nd5 {[%clk 0:02:40]}  Nxd5 {[%clk 0:02:24]} 15. cxd5 {[%clk 0:02:40]}  Ne5 {[%clk 0:02:23]} 16. Qc2 {[%clk 0:02:37]}  Nxf3+ {[%clk 0:02:22]} 17. Bxf3 {[%clk 0:02:38]}  g5 {[%clk 0:02:10]} 18. Be3 {[%clk 0:02:37]}  Rac8 {[%clk 0:02:10]} 19. b3 {[%clk 0:02:37]}  Qd6 {[%clk 0:02:09]} 20. Bg2 {[%clk 0:02:31]}  b5 {[%clk 0:02:09]} 21. f4 {[%clk 0:02:31]}  g4 {[%clk 0:02:09]} 22. f5 {[%clk 0:02:31]}  Qe5 {[%clk 0:02:01]} 23. Qd2 {[%clk 0:02:13]}  Qf6 {[%clk 0:01:57]} 24. Rf4 {[%clk 0:02:08]}  h5 {[%clk 0:01:54]} 25. Rf2 {[%clk 0:02:08]}  c4 {[%clk 0:01:54]} 26. Bg5 {[%clk 0:02:05]}  Qe5 {[%clk 0:01:54]} 27. d6 {[%clk 0:02:02]}  exd6 {[%clk 0:01:50]} 28. f6 {[%clk 0:02:02]}  Bh8 {[%clk 0:01:48]} 29. Bh4 {[%clk 0:02:01]}  Be6 {[%clk 0:01:46]} 30. Qh6 {[%clk 0:02:00]}  c3 {[%clk 0:01:41]} 31. Rc1 {[%clk 0:01:44]}  Rfd8 {[%clk 0:01:34]} 32. Bg5 {[%clk 0:01:44]}  Rc5 {[%clk 0:01:24]} 33. Be3 {[%clk 0:01:40]}  Rcc8 {[%clk 0:01:15]} 34. Rc2 {[%clk 0:01:17]}  d5 {[%clk 0:01:15]} 35. Bc1 {[%clk 0:01:14]}  d4 {[%clk 0:01:12]} 36. Rf4 {[%clk 0:01:14]}  d3 {[%clk 0:01:04]} 37. exd3 {[%clk 0:01:12]}  Rxd3 {[%clk 0:01:05]} 38. Be4 {[%clk 0:01:12]}  Rd1+ {[%clk 0:01:05]} 39. Kg2 {[%clk 0:01:12]}  Bd5 {[%clk 0:01:02]} 40. Qh7+ {[%clk 0:01:11]}  Kf8 {[%clk 0:01:00]} 41. Qxh8# {[%clk 0:01:11]} 1-0

[Event "January 2 Early 2024"]
[Site "https://www.chess.com"]
[Date "2024.01.02"]
[Round "2"]
[White "Legenia, Artem"]
[Black "Harshavardhan G B"]
[Result "1-0"]
[Board "111"]
[TimeControl "180+1"]
[WhiteFideId "14136945"]
[BlackFideId "25059009"]
[WhiteElo "2360"]
[BlackElo "2723"]
[WhiteTeam "UKR"]
[BlackTeam "IND"]
[WhiteClock "0:00:15"]
[BlackClock "0:00:11"]

1. c4 {[%clk 0:02:59]}  e5 {[%clk 0:02:58]} 2. g3 {[%clk 0:02:59]}  g6 {[%clk 0:02:55]} 3. Bg2 {[%clk 0:02:59]}  Bg7 {[%clk 0:02:55]} 4. Nc3 {[%clk 0:02:58]}  Ne7 {[%clk 0:02:56]} 5. Nf3 {[%clk 0:02:56]}  Nbc6 {[%clk 0:02:55]} 6. O-O {[%clk 0:02:55]}  O-O {[%clk 0:02:54]} 7. d3 {[%clk 0:02:56]}  d6 {[%clk 0:02:53]} 8. Rb1 {[%clk 0:02:56]}  a5 {[%clk 0:02:52]} 9. a3 {[%clk 0:02:53]}  h6 {[%clk 0:02:49]} 10. b4 {[%clk 0:02:53]}  axb4 {[%clk 0:02:47]} 11. axb4 {[%clk 0:02:53]}  Be6 {[%clk 0:02:47]} 12. b5 {[%clk 0:02:52]}  Na5 {[%clk 0:02:32]} 13. Nd2 {[%clk 0:02:28]}  f5 {[%clk 0:02:28]} 14. Nd5 {[%clk 0:02:17]}  Rb8 {[%clk 0:02:26]} 15. f4 {[%clk 0:02:00]}  b6 {[%clk 0:02:23]} 16. e4 {[%clk 0:01:54]}  fxe4 {[%clk 0:02:17]} 17. dxe4 {[%clk 0:01:51]}  Bxd5 {[%clk 0:02:17]} 18. cxd5 {[%clk 0:01:50]}  exf4 {[%clk 0:02:17]} 19. gxf4 {[%clk 0:01:48]}  Qd7 {[%clk 0:02:03]} 20. Kh1 {[%clk 0:01:43]}  Rf7 {[%clk 0:02:00]} 21. Nf3 {[%clk 0:01:37]}  Rbf8 {[%clk 0:01:58]} 22. Nd4 {[%clk 0:01:37]}  g5 {[%clk 0:01:37]} 23. Ne6 {[%clk 0:01:26]}  gxf4 {[%clk 0:01:31]} 24. Nxf8 {[%clk 0:01:24]}  Rxf8 {[%clk 0:01:29]} 25. Rxf4 {[%clk 0:01:22]}  Rxf4 {[%clk 0:01:28]} 26. Bxf4 {[%clk 0:01:22]}  Ng6 {[%clk 0:01:28]} 27. Be3 {[%clk 0:01:11]}  Nc4 {[%clk 0:01:26]} 28. Bd4 {[%clk 0:01:11]}  Nce5 {[%clk 0:01:25]} 29. Qh5 {[%clk 0:01:07]}  Qe7 {[%clk 0:01:18]} 30. Bh3 {[%clk 0:01:04]}  Nf4 {[%clk 0:01:16]} 31. Qf5 {[%clk 0:00:58]}  Qh4 {[%clk 0:00:56]} 32. Qc8+ {[%clk 0:00:52]}  Kh7 {[%clk 0:00:53]} 33. Bf5+ {[%clk 0:00:52]}  Nfg6 {[%clk 0:00:54]} 34. Rg1 {[%clk 0:00:49]}  Qf4 {[%clk 0:00:49]} 35. Bxg6+ {[%clk 0:00:25]}  Nxg6 {[%clk 0:00:47]} 36. Bxg7 {[%clk 0:00:19]}  Qf3+ {[%clk 0:00:46]} 37. Rg2 {[%clk 0:00:19]}  Qf1+ {[%clk 0:00:30]} 38. Rg1 {[%clk 0:00:18]}  Qf3+ {[%clk 0:00:31]} 39. Rg2 {[%clk 0:00:18]}  Nh4 {[%clk 0:00:11]} 40. Qh8# {[%clk 0:00:15]} 1-0

[Event "January 2 Early 2024"]
[Site "https://www.chess.com"]
[Date "2024.01.02"]
[Round "2"]
[White "Poormosavi, Seyed Kian"]
[Black "Paragua, Megan Althea"]
[Result "1-0"]
[Board "112"]
[TimeControl "180+1"]
[WhiteFideId "12585807"]
[BlackFideId "30973007"]
[WhiteElo "2722"]
[BlackElo "2358"]
[WhiteTeam "IRI"]
[BlackTeam "USA"]
[WhiteClock "0:02:36"]
[BlackClock "0:00:00"]

1. Nf3 {[%clk 0:03:00]}  Nf6 {[%clk 0:02:58]} 2. g3 {[%clk 0:02:59]}  e6 {[%clk 0:02:49]} 3. Bg2 {[%clk 0:02:59]}  d5 {[%clk 0:02:49]} 4. O-O {[%clk 0:03:00]}  Be7 {[%clk 0:02:48]} 5. b3 {[%clk 0:02:59]}  O-O {[%clk 0:02:49]} 6. Bb2 {[%clk 0:02:59]}  b6 {[%clk 0:02:49]} 7. e3 {[%clk 0:03:00]}  Bb7 {[%clk 0:02:49]} 8. c4 {[%clk 0:03:00]}  Nbd7 {[%clk 0:02:49]} 9. d3 {[%clk 0:02:58]}  c5 {[%clk 0:02:49]} 10. Nbd2 {[%clk 0:02:57]}  Qc7 {[%clk 0:02:34]} 11. Qe2 {[%clk 0:02:57]}  Rfd8 {[%clk 0:02:28]} 12. e4 {[%clk 0:02:56]}  dxe4 {[%clk 0:02:27]} 13. dxe4 {[%clk 0:02:52]}  Rac8 {[%clk 0:02:24]} 14. e5 {[%clk 0:02:46]}  Ne8 {[%clk 0:02:22]} 15. Ne4 {[%clk 0:02:44]}  Qb8 {[%clk 0:02:17]} 16. Rad1 {[%clk 0:02:41]}  Qa8 {[%clk 0:00:00]} 17. Ne1 {[%clk 0:02:36]} 1-0

[Event "January 2 Early 2024"]
[Site "https://www.chess.com"]
[Date "2024.01.02"]
[Round "2"]
[White "Kleibel, Uwe"]
[Black "Dyachuk, Artem"]
[Result "0-1"]
[Board "113"]
[TimeControl "180+1"]
[WhiteFideId "1270982"]
[BlackFideId "34107924"]
[WhiteElo "2344"]
[BlackElo "2710"]
[WhiteTeam "GER"]
[BlackTeam "UKR"]
[WhiteClock "0:00:10"]
[BlackClock "0:00:34"]

1. e4 {[%clk 0:02:52]}  e5 {[%clk 0:02:59]} 2. Nf3 {[%clk 0:02:52]}  Nc6 {[%clk 0:02:58]} 3. Bc4 {[%clk 0:02:53]}  Nf6 {[%clk 0:02:57]} 4. d3 {[%clk 0:02:53]}  h6 {[%clk 0:02:56]} 5. c3 {[%clk 0:02:50]}  g6 {[%clk 0:02:55]} 6. O-O {[%clk 0:02:48]}  Bg7 {[%clk 0:02:55]} 7. Re1 {[%clk 0:02:48]}  O-O {[%clk 0:02:55]} 8. Bb3 {[%clk 0:02:45]}  d5 {[%clk 0:02:42]} 9. exd5 {[%clk 0:02:44]}  Nxd5 {[%clk 0:02:43]} 10. Nbd2 {[%clk 0:02:43]}  Nf4 {[%clk 0:02:42]} 11. d4 {[%clk 0:02:36]}  exd4 {[%clk 0:02:41]} 12. Ne4 {[%clk 0:02:33]}  Ne6 {[%clk 0:02:37]} 13. Qc2 {[%clk 0:02:08]}  Re8 {[%clk 0:02:31]} 14. h3 {[%clk 0:02:00]}  a5 {[%clk 0:02:24]} 15. a4 {[%clk 0:02:00]}  dxc3 {[%clk 0:02:23]} 16. bxc3 {[%clk 0:01:59]}  Bd7 {[%clk 0:01:51]} 17. Be3 {[%clk 0:01:56]}  Qc8 {[%clk 0:01:48]} 18. Rad1 {[%clk 0:01:55]}  Nf8 {[%clk 0:01:40]} 19. Ng3 {[%clk 0:01:31]}  Be6 {[%clk 0:01:31]} 20. h4 {[%clk 0:01:15]}  Bxb3 {[%clk 0:01:20]} 21. Qxb3 {[%clk 0:01:16]}  b6 {[%clk 0:01:11]} 22. h5 {[%clk 0:01:16]}  Qe6 {[%clk 0:01:04]} 23. Qb5 {[%clk 0:01:13]}  Ne5 {[%clk 0:00:55]} 24. Nxe5 {[%clk 0:01:11]}  Qxe5 {[%clk 0:00:56]} 25. Qc6 {[%clk 0:01:00]}  Qxc3 {[%clk 0:00:55]} 26. Qf3 {[%clk 0:00:53]}  Qf6 {[%clk 0:00:53]} 27. Qg4 {[%clk 0:00:51]}  Rad8 {[%clk 0:00:48]} 28. hxg6 {[%clk 0:00:49]}  Qxg6 {[%clk 0:00:47]} 29. Qc4 {[%clk 0:00:48]}  Ne6 {[%clk 0:00:40]} 30. Ne4 {[%clk 0:00:39]}  Nd4 {[%clk 0:00:36]} 31. Bxd4 {[%clk 0:00:38]}  Rxe4 {[%clk 0:00:35]} 32. Rxe4 {[%clk 0:00:16]}  Qxe4 {[%clk 0:00:35]} 33. Qxc7 {[%clk 0:00:16]}  Rxd4 {[%clk 0:00:34]} 34. Rxd4 {[%clk 0:00:14]}  Qe1+ {[%clk 0:00:34]} 35. Kh2 {[%clk 0:00:10]}  Be5+ {[%clk 0:00:34]} 0-1

[Event "January 2 Early 2024"]
[Site "https://www.chess.com"]
[Date "2024.01.02"]
[Round "2"]
[White "Perez Gormaz, Matias"]
[Black "Poddubnyi, Viktor"]
[Result "1-0"]
[Board "114"]
[TimeControl "180+1"]
[WhiteFideId "3406342"]
[BlackFideId "4141989"]
[WhiteElo "2708"]
[BlackElo "2326"]
[WhiteTeam "CHI"]
[BlackTeam "RUS"]
[WhiteClock "0:02:23"]
[BlackClock "0:01:26"]

1. d4 {[%clk 0:03:00]}  g6 {[%clk 0:03:00]} 2. e4 {[%clk 0:03:00]}  Bg7 {[%clk 0:03:00]} 3. Nf3 {[%clk 0:03:01]}  d6 {[%clk 0:03:00]} 4. Bd3 {[%clk 0:03:01]}  Nf6 {[%clk 0:02:59]} 5. O-O {[%clk 0:03:01]}  O-O {[%clk 0:02:59]} 6. Re1 {[%clk 0:03:01]}  Nc6 {[%clk 0:02:59]} 7. c3 {[%clk 0:03:00]}  e5 {[%clk 0:02:59]} 8. h3 {[%clk 0:02:58]}  Nh5 {[%clk 0:02:57]} 9. Bg5 {[%clk 0:02:53]}  Bf6 {[%clk 0:02:49]} 10. Be3 {[%clk 0:02:53]}  Qe7 {[%clk 0:02:42]} 11. Nbd2 {[%clk 0:02:42]}  g5 {[%clk 0:02:29]} 12. Nxe5 {[%clk 0:02:30]}  dxe5 {[%clk 0:02:22]} 13. Qxh5 {[%clk 0:02:29]}  exd4 {[%clk 0:01:26]} 14. e5 {[%clk 0:02:23]} 1-0